Workbook

Sheet 지점별소음도현황
A1: 1. 지점별 소음도 현황(3분기)
A2: 측정망 | B2: 시도 | C2: 적용대상 | E2: 측 정 지 점 | J2: 지점코드 | K2: 년도 | L2: 분기 | M2: 주간 | V2: 야간
C3: 법적 구분 | D3: 용도 구분 | E3: 측정지역 | F3: 지역 구분 | G3: 측정지점 | H3: TM좌표 | M3: 9시 | O3: 12시 | Q3: 16시 | S3: 20시 | U3: 주간 평균 | V3: 23시 | X3: 1시 | Z3: 야간 평균
H4: 가로 | I4: 세로 | M4: 측정시간 | N4: 측정값 | O4: 측정시간 | P4: 측정값 | Q4: 측정시간 | R4: 측정값 | S4: 측정시간 | T4: 측정값 | V4: 측정시간 | W4: 측정값 | X4: 측정시간 | Y4: 측정값
A5: 지방 | B5: 광양시 | C5: 가 | D5: 학교지역 | E5: 광양읍 | F5: 일반 | G5: 광양하이텍고운동장 서편 | H5: 164.68 | I5: 253.89 | J5: B14623001 | K5: 2022 | L5: 3 | M5: 2022.9.29 0927 | N5: 46.6 | O5: 2022.9.29 1230 | P5: 45.5 | Q5: 2022.9.29 1626 | R5: 43.5 | S5: 2022.9.29 2026 | T5: 41.1 | U5: =ROUND(AVERAGE(N5,P5,R5,T5),0) -> 44 | V5: 2022.9.29 2306 | W5: 39.1 | X5: 2022.9.30 0045 | Y5: 38.2 | Z5: =ROUND(AVERAGE(W5,Y5),0) -> 39
A6: 지방 | B6: 광양시 | C6: 가 | D6: 학교지역 | F6: 일반 | G6: 광양하이텍고 연단 앞 | H6: 164.69 | I6: 253.95 | J6: B14623002 | K6: 2022 | L6: 3 | M6: 2022.9.29 0935 | N6: 46.8 | O6: 2022.9.29 1236 | P6: 48.2 | Q6: 2022.9.29 1632 | R6: 47.1 | S6: 2022.9.29 2033 | T6: 42.5 | U6: =ROUND(AVERAGE(N6,P6,R6,T6),0) -> 46 | V6: 2022.9.29 2311 | W6: 37.5 | X6: 2022.9.30 0051 | Y6: 37.8 | Z6: =ROUND(AVERAGE(W6,Y6),0) -> 38
A7: 지방 | B7: 광양시 | C7: 가 | D7: 학교지역 | F7: 일반 | G7: 광양중학교 연단 앞 | H7: 164.7 | I7: 253.8 | J7: B14623003 | K7: 2022 | L7: 3 | M7: 2022.9.29 0920 | N7: 48.8 | O7: 2022.9.29 1221 | P7: 46.6 | Q7: 2022.9.29 1615 | R7: 44.8 | S7: 2022.9.29 2016 | T7: 42.0 | U7: 46 | V7: 2022.9.29 2300 | W7: 38.2 | X7: 2022.9.30 0037 | Y7: 37.5 | Z7: 38
A8: 지방 | B8: 광양시 | C8: 가 | D8: 학교지역 | F8: 도로 | G8: 광양하이텍고 남문 앞 | H8: 164.6 | I8: 253.91 | J8: B14623004 | K8: 2022 | L8: 3 | M8: 2022.9.29 0911 | N8: 50.8 | O8: 2022.9.29 1210 | P8: 53.3 | Q8: 2022.9.29 1607 | R8: 59.3 | S8: 2022.9.29 2009 | T8: 42.7 | U8: 52 | V8: 2022.9.29 2253 | W8: 43.1 | X8: 2022.9.30 0030 | Y8: 42.5 | Z8: 43
A9: 지방 | B9: 광양시 | C9: 가 | D9: 학교지역 | F9: 도로 | G9: 광양하이텍고동편 도로변(기존) | H9: 164.71 | I9: 254.04 | J9: B14623005 | K9: 2022 | L9: 3 | M9: 2022.9.29 0900 | N9: 61.0 | O9: 2022.9.29 1202 | P9: 61.1 | Q9: 2022.9.29 1601 | R9: 62.5 | S9: 2022.9.29 2002 | T9: 60.0 | U9: 61 | V9: 2022.9.29 2246 | W9: 53.7 | X9: 2022.9.30 0023 | Y9: 52.8 | Z9: 53
A10: 지방 | B10: 광양시 | C10: 가 | D10: 학교지역 | F10: 도로 | G10: 광양마로초등학교 인근(변경) | K10: 2022 | L10: 3 | M10: 2022.9.29 0845 | N10: 58.6 | O10: 2022.9.29 1145 | P10: 58.8 | Q10: 2022.9.29 1545 | R10: 58.9 | S10: 2022.9.29 1945 | T10: 53.3 | U10: 57 | V10: 2022.9.29 2230 | W10: 52.2 | X10: 2022.9.30 0210 | Y10: 51.0 | Z10: 52
A11: 지방 | B11: 광양시 | C11: 나 | D11: 일반주거 | E11: 중 동 | F11: 일반 | G11: 주공1차 아파트 공터 | H11: 160.67 | I11: 263.86 | J11: B14623006 | K11: 2022 | L11: 3 | M11: 2022.9.27 0957 | N11: 41.0 | O11: 2022.9.27 1258 | P11: 45.9 | Q11: 2022.9.27 1700 | R11: 42.3 | S11: 2022.9.27 2100 | T11: 47.4 | U11: 44 | V11: 2022.9.28 0000 | W11: 42.8 | X11: 2022.9.28 0155 | Y11: 42.5 | Z11: 43
A12: 지방 | B12: 광양시 | C12: 나 | D12: 일반주거 | F12: 일반 | G12: 주공2차 아파트 공터 | H12: 160.94 | I12: 262.56 | J12: B14623007 | K12: 2022 | L12: 3 | M12: 2022.9.271005 | N12: 45.4 | O12: 2022.9.27 1308 | P12: 47.4 | Q12: 2022.9.27 1710 | R12: 41.0 | S12: 2022.9.27 2107 | T12: 51.0 | U12: 46 | V12: 2022.9.28 0009 | W12: 40.7 | X12: 2022.9.28 0207 | Y12: 42.0 | Z12: 41
A13: 지방 | B13: 광양시 | C13: 나 | D13: 일반주거 | F13: 일반 | G13: 성호1차 아파트 공터 | H13: 159.47 | I13: 263.38 | J13: B14623008 | K13: 2022 | L13: 3 | M13: 2022.9.27 0921 | N13: 49.1 | O13: 2022.9.27 1228 | P13: 48.9 | Q13: 2022.9.27 1627 | R13: 49.3 | S13: 2022.9.27 2022 | T13: 49.8 | U13: 49 | V13: 2022.9.27 2325 | W13: 44.2 | X13: 2022.9.28 0120 | Y13: 43.8 | Z13: 44
A14: 지방 | B14: 광양시 | C14: 나 | D14: 일반주거 | F14: 도로 | G14: 호반아파트 앞 도로(기존) | H14: 159.9 | I14: 263.16 | J14: B14623009 | K14: 2022 | L14: 3 | M14: 2022.9.27 0945 | N14: 49.5 | O14: 2022.9.27 1250 | P14: 45.7 | Q14: 2022.9.27 1653 | R14: 46.8 | S14: 2022.9.27 2051 | T14: 48.7 | U14: 48 | V14: 2022.9.27 2350 | W14: 47.7 | X14: 2022.9.28 0145 | Y14: 45.5 | Z14: 47
A15: 지방 | B15: 광양시 | C15: 나 | D15: 일반주거 | F15: 도로 | G15: 금광아파트 옆 | H15: 160.83 | I15: 263.59 | J15: B14623010 | K15: 2022 | L15: 3 | M15: 2022.9.27 0930 | N15: 60.0 | O15: 2022.9.27 1235 | P15: 61.6 | Q15: 2022.9.27 1638 | R15: 64.5 | S15: 2022.9.27 2033 | T15: 60.3 | U15: 62 | V15: 2022.9.27 2334 | W15: 53.7 | X15: 2022.9.28 0128 | Y15: 52.7 | Z15: 53
A16: 지방 | B16: 광양시 | C16: 나 | D16: 일반주거 | F16: 도로 | G16: 중마진아리채2차 앞(변경) | K16: 2022 | L16: 3 | M16: 2022.9.27 0938 | N16: 64.2 | O16: 2022.9.27 1242 | P16: 55.6 | Q16: 2022.9.27 1645 | R16: 63.3 | S16: 2022.9.27 2040 | T16: 64.3 | U16: 62 | V16: 2022.9.27 2342 | W16: 53.1 | X16: 2022.9.28 0138 | Y16: 52.2 | Z16: 53
A17: 지방 | B17: 광양시 | C17: 다 | D17: 상업지역 | E17: 광양읍 | F17: 일반 | G17: 장원식당 뒤 | H17: 164.27 | I17: 253.36 | J17: B14623011 | K17: 2022 | L17: 3 | M17: 2022.9.29 1003 | N17: 55.3 | O17: 2022.9.29 1305 | P17: 57.7 | Q17: 2022.9.29 1705 | R17: 58.5 | S17: 2022.9.29 2104 | T17: 53.1 | U17: 56 | V17: 2022.9.29 2330 | W17: 53.6 | X17: 2022.9.30 0116 | Y17: 47.0 | Z17: 50
A18: 지방 | B18: 광양시 | C18: 다 | D18: 상업지역 | F18: 일반 | G18: 광양농협 뒤 | H18: 163.88 | I18: 253.8 | J18: B14623012 | K18: 2022 | L18: 3 | M18: 2022.9.29 1050 | N18: 56.3 | O18: 2022.9.29 1358 | P18: 55.5 | Q18: 2022.9.29 1755 | R18: 53.8 | S18: 2022.9.29 2156 | T18: 45.7 | U18: 53 | V18: 2022.9.30 0013 | W18: 46.8 | X18: 2022.9.30 0151 | Y18: 43.6 | Z18: 45
A19: 지방 | B19: 광양시 | C19: 다 | D19: 상업지역 | F19: 일반 | G19: 참마트 뒤 | H19: 164.66 | I19: 253.2 | J19: B14623013 | K19: 2022 | L19: 3 | M19: 2022.9.29 1031 | N19: 58.4 | O19: 2022.9.29 1335 | P19: 58.1 | Q19: 2022.9.29 1734 | R19: 57.7 | S19: 2022.9.29 2135 | T19: 58.8 | U19: 58 | V19: 2022.9.29 2350 | W19: 52.2 | X19: 2022.9.30 0138 | Y19: 51.5 | Z19: 52
A20: 지방 | B20: 광양시 | C20: 다 | D20: 상업지역 | F20: 도로 | G20: 고려의원 앞 | H20: 253.71 | I20: 164.28 | J20: B14623014 | K20: 2022 | L20: 3 | M20: 2022.9.29 0945 | N20: 61.9 | O20: 2022.9.29 1247 | P20: 60.0 | Q20: 2022.9.29 1646 | R20: 59.8 | S20: 2022.9.29 2047 | T20: 53.2 | U20: 59 | V20: 2022.9.29 2318 | W20: 52.9 | X20: 2022.9.30 0100 | Y20: 44.9 | Z20: 49
A21: 지방 | B21: 광양시 | C21: 다 | D21: 상업지역 | F21: 도로 | G21: 제일교회 앞(기존) | H21: 164.41 | I21: 253.09 | J21: B14623015 | K21: 2022 | L21: 3 | M21: 2022.9.29 1011 | N21: 63.8 | O21: 2022.9.29 1313 | P21: 62.4 | Q21: 2022.9.29 1712 | R21: 61.3 | S21: 2022.9.29 2112 | T21: 54.5 | U21: 61 | V21: 2022.9.29 2338 | W21: 54.2 | X21: 2022.9.30 0125 | Y21: 46.5 | Z21: 50
A22: 지방 | B22: 광양시 | C22: 다 | D22: 상업지역 | F22: 도로 | G22: 목성중앙로사거리(변경) | K22: 2022 | L22: 3 | M22: 2022.9.29 0952 | N22: 58.4 | O22: 2022.9.29 1255 | P22: 63.8 | Q22: 2022.9.29 1653 | R22: 62.3 | S22: 2022.9.29 2055 | T22: 54.1 | U22: 60 | V22: 2022.9.29 2323 | W22: 53.5 | X22: 2022.9.30 0106 | Y22: 47.7 | Z22: =ROUND(AVERAGE(W22,Y22),0) -> 51
A23: 지방 | B23: 광양시 | C23: 라 | D23: 공업지역 | E23: 태인동 | F23: 일반 | G23: 태인폐수처리장 | H23: 159.78 | I23: 269.35 | J23: B14623016 | K23: 2022 | L23: 3 | M23: 2022.9.27 0858 | N23: 54.6 | O23: 2022.9.27 0900 | P23: 52.3 | Q23: 2022.9.27 1605 | R23: 58.4 | S23: 2022.9.27 1957 | T23: 53.3 | U23: 55 | V23: 2022.9.27 2300 | W23: 53.0 | X23: 2022.9.28 0052 | Y23: 52.3 | Z23: 53
A24: 지방 | B24: 광양시 | C24: 라 | D24: 공업지역 | F24: 일반 | G24: 조선내화㈜ | H24: 159.78 | I24: 268.72 | J24: B14623017 | K24: 2022 | L24: 3 | M24: 2022.9.27 0905 | N24: 63.6 | O24: 2022.9.27 0907 | P24: 62.7 | Q24: 2022.9.27 1612 | R24: 65.5 | S24: 2022.9.27 2005 | T24: 63.5 | U24: 64 | V24: 2022.9.27 2307 | W24: 63.2 | X24: 2022.9.28 0100 | Y24: 61.1 | Z24: 62
A25: 지방 | B25: 광양시 | C25: 라 | D25: 공업지역 | F25: 일반 | G25: (주)남광포리머 | H25: 160.46 | I25: 269.75 | J25: B14623018 | K25: 2022 | L25: 3 | M25: 2022.9.27 0850 | N25: 62.6 | O25: 2022.9.27 1151 | P25: 61.4 | Q25: 2022.9.27 1553 | R25: 62.5 | S25: 2022.9.27 1949 | T25: 59.1 | U25: 61 | V25: 2022.9.27 2247 | W25: 58.8 | X25: 2022.9.28 0045 | Y25: 56.5 | Z25: 58
A26: 지방 | B26: 광양시 | C26: 라 | D26: 공업지역 | F26: 도로 | G26: ㈜피엠에스 | H26: 160.07 | I26: 268.38 | J26: B14623019 | K26: 2022 | L26: 3 | M26: 2022.9.27 0841 | N26: 64.1 | O26: 2022.9.27 1140 | P26: 54.5 | Q26: 2022.9.27 1542 | R26: 65.5 | S26: 2022.9.27 1940 | T26: 47.9 | U26: 58 | V26: 2022.9.27 2238 | W26: 47.5 | X26: 2022.9.28 0037 | Y26: 45.7 | Z26: 47
A27: 지방 | B27: 광양시 | C27: 라 | D27: 공업지역 | F27: 도로 | G27: 포스코케미칼 | H27: 160.55 | I27: 269.67 | J27: B14623020 | K27: 2022 | L27: 3 | M27: 2022.9.27 0830 | N27: 70.4 | O27: 2022.9.27 1130 | P27: 70.3 | Q27: 2022.9.27 1530 | R27: 60.9 | S27: 2022.9.27 1930 | T27: 71.1 | U27: 68 | V27: 2022.9.27 2230 | W27: 61.1 | X27: 2022.9.28 0030 | Y27: 54.4 | Z27: 58

Sheet 지점별(-)
A3: 2. (광양시)
A4: [단위 : dB(A)]
A5: 적용대상 | C5: 측정지역 | H5: 소음도
A6: 법적 구분 | B6: 용도 구분 | C6: 측정지역 (주소) | D6: 지역 구분 | E6: 측정지점 | F6: T.M좌표 | H6: 낮시간대 | M6: 밤시간대
F7: 가로 | G7: 세로 | H7: 09 | I7: 12 | J7: 16 | K7: 20 | L7: 평균 | M7: 23 | N7: 01 | O7: 평균
A8: 가 | B8: 학교지역 | C8: 광양읍 | D8: 일 반 | E8: 광양하이텍고 서편 | F8: 164.68 | G8: 253.89 | H8: =지점별소음도현황!N5 -> 46.6 | I8: =지점별소음도현황!P5 -> 45.5 | J8: =지점별소음도현황!R5 -> 43.5 | K8: =지점별소음도현황!T5 -> 41.1 | L8: =ROUND(AVERAGE(H8:K8),0) -> 44 | M8: =지점별소음도현황!W5 -> 39.1 | N8: =지점별소음도현황!Y5 -> 38.2 | O8: =ROUND(AVERAGE(M8:N8),0) -> 39
E9: 광양하이텍고 연단앞 | F9: 164.69 | G9: 253.95 | H9: =지점별소음도현황!N6 -> 46.8 | I9: =지점별소음도현황!P6 -> 48.2 | J9: =지점별소음도현황!R6 -> 47.1 | K9: =지점별소음도현황!T6 -> 42.5 | L9: =ROUND(AVERAGE(H9:K9),0) -> 46 | M9: =지점별소음도현황!W6 -> 37.5 | N9: =지점별소음도현황!Y6 -> 37.8 | O9: =ROUND(AVERAGE(M9:N9),0) -> 38
E10: 광양중 연단앞 | F10: 164.70 | G10: 253.80 | H10: =지점별소음도현황!N7 -> 48.8 | I10: =지점별소음도현황!P7 -> 46.6 | J10: =지점별소음도현황!R7 -> 44.8 | K10: =지점별소음도현황!T7 -> 42.0 | L10: =ROUND(AVERAGE(H10:K10),0) -> 46 | M10: =지점별소음도현황!W7 -> 38.2 | N10: =지점별소음도현황!Y7 -> 37.5 | O10: =ROUND(AVERAGE(M10:N10),0) -> 38
E11: 평균 | F11: - | G11: - | H11: =AVERAGE(H8:H10) -> 47 | I11: =AVERAGE(I8:I10) -> 47 | J11: 45 | K11: 42 | L11: =ROUND(AVERAGE(H11:K11),1) -> 45 | M11: =AVERAGE(M8:M10) -> 38 | N11: =AVERAGE(N8:N10) -> 38 | O11: =ROUND(AVERAGE(M11:N11),1) -> 38
D12: 도 로 | E12: 광양하이텍고 남문앞 | F12: 164.60 | G12: 253.91 | H12: =지점별소음도현황!N8 -> 50.8 | I12: =지점별소음도현황!P8 -> 53.3 | J12: =지점별소음도현황!R8 -> 59.3 | K12: =지점별소음도현황!T8 -> 42.7 | L12: =ROUND(AVERAGE(H12:K12),0) -> 52 | M12: =지점별소음도현황!W8 -> 43.1 | N12: =지점별소음도현황!Y8 -> 42.5 | O12: =ROUND(AVERAGE(M12:N12),0) -> 43
E13: 광양하이텍고 동편 | F13: 164.71 | G13: 254.04 | H13: =지점별소음도현황!N9 -> 61.0 | I13: =지점별소음도현황!P9 -> 61.1 | J13: =지점별소음도현황!R9 -> 62.5 | K13: =지점별소음도현황!T9 -> 60.0 | L13: =ROUND(AVERAGE(H13:K13),0) -> 61 | M13: =지점별소음도현황!W9 -> 53.7 | N13: =지점별소음도현황!Y9 -> 52.8 | O13: =ROUND(AVERAGE(M13:N13),0) -> 53
E14: 평균 | F14: - | G14: - | H14: =AVERAGE(H12:H13) -> 56 | I14: =AVERAGE(I12:I13) -> 57 | J14: 61 | K14: 51 | L14: =ROUND(AVERAGE(H14:K14),1) -> 56 | M14: =AVERAGE(M12:M13) -> 48 | N14: =AVERAGE(N12:N13) -> 48 | O14: =ROUND(AVERAGE(M14:N14),1) -> 48
A15: 나 | B15: 일반주거 | C15: 중 동 | D15: 일 반 | E15: 주공1차아파트공터 | F15: 160.67 | G15: 263.86 | H15: =지점별소음도현황!N11 -> 41.0 | I15: =지점별소음도현황!P11 -> 45.9 | J15: =지점별소음도현황!R11 -> 42.3 | K15: =지점별소음도현황!T11 -> 47.4 | L15: =ROUND(AVERAGE(H15:K15),0) -> 44 | M15: =지점별소음도현황!W11 -> 42.8 | N15: =지점별소음도현황!Y11 -> 42.5 | O15: =ROUND(AVERAGE(M15:N15),0) -> 43
E16: 주공2차아파트공터 | F16: 160.94 | G16: 262.56 | H16: =지점별소음도현황!N12 -> 45.4 | I16: =지점별소음도현황!P12 -> 47.4 | J16: =지점별소음도현황!R12 -> 41.0 | K16: =지점별소음도현황!T12 -> 51.0 | L16: =ROUND(AVERAGE(H16:K16),0) -> 46 | M16: =지점별소음도현황!W12 -> 40.7 | N16: =지점별소음도현황!Y12 -> 42.0 | O16: =ROUND(AVERAGE(M16:N16),0) -> 41
E17: 성호1차아파트공터 | F17: 159.47 | G17: 263.38 | H17: =지점별소음도현황!N13 -> 49.1 | I17: =지점별소음도현황!P13 -> 48.9 | J17: =지점별소음도현황!R13 -> 49.3 | K17: =지점별소음도현황!T13 -> 49.8 | L17: =ROUND(AVERAGE(H17:K17),0) -> 49 | M17: =지점별소음도현황!W13 -> 44.2 | N17: =지점별소음도현황!Y13 -> 43.8 | O17: =ROUND(AVERAGE(M17:N17),0) -> 44
E18: 평균 | F18: - | G18: - | H18: =AVERAGE(H15:H17) -> 45 | I18: =AVERAGE(I15:I17) -> 47 | J18: 44 | K18: 49 | L18: =ROUND(AVERAGE(H18:K18),1) -> 47 | M18: =AVERAGE(M15:M17) -> 43 | N18: =AVERAGE(N15:N17) -> 43 | O18: =ROUND(AVERAGE(M18:N18),1) -> 43
D19: 도 로 | E19: 호반아파트 앞 도로 | F19: 159.90 | G19: 263.16 | H19: =지점별소음도현황!N14 -> 49.5 | I19: =지점별소음도현황!P14 -> 45.7 | J19: =지점별소음도현황!R14 -> 46.8 | K19: =지점별소음도현황!T14 -> 48.7 | L19: =ROUND(AVERAGE(H19:K19),0) -> 48 | M19: =지점별소음도현황!W14 -> 47.7 | N19: =지점별소음도현황!Y14 -> 45.5 | O19: =ROUND(AVERAGE(M19:N19),0) -> 47
E20: 금광아파트 옆 | F20: 159.67 | G20: 262.89 | H20: =지점별소음도현황!N15 -> 60.0 | I20: =지점별소음도현황!P15 -> 61.6 | J20: =지점별소음도현황!R15 -> 64.5 | K20: =지점별소음도현황!T15 -> 60.3 | L20: 62 | M20: =지점별소음도현황!W15 -> 53.7 | N20: =지점별소음도현황!Y15 -> 52.7 | O20: 53
E21: 평균 | F21: - | G21: - | H21: =AVERAGE(H19:H20) -> 55 | I21: =AVERAGE(I19:I20) -> 54 | J21: 56 | K21: 55 | L21: 55 | M21: 51 | N21: 49 | O21: 50
A22: 다 | B22: 상업지역 | C22: 광양읍 | D22: 일 반 | E22: 장원식당뒤 | F22: 164.27 | G22: 253.36 | H22: =지점별소음도현황!N17 -> 55.3 | I22: =지점별소음도현황!P17 -> 57.7 | J22: =지점별소음도현황!R17 -> 58.5 | K22: =지점별소음도현황!T17 -> 53.1 | L22: 56 | M22: =지점별소음도현황!W17 -> 53.6 | N22: =지점별소음도현황!Y17 -> 47.0 | O22: 50
E23: 광양농협뒤 | F23: 163.88 | G23: 253.80 | H23: =지점별소음도현황!N18 -> 56.3 | I23: =지점별소음도현황!P18 -> 55.5 | J23: =지점별소음도현황!R18 -> 53.8 | K23: =지점별소음도현황!T18 -> 45.7 | L23: 53 | M23: =지점별소음도현황!W18 -> 46.8 | N23: =지점별소음도현황!Y18 -> 43.6 | O23: 45
E24: 참마트뒤 | F24: 164.66 | G24: 253.20 | H24: =지점별소음도현황!N19 -> 58.4 | I24: =지점별소음도현황!P19 -> 58.1 | J24: =지점별소음도현황!R19 -> 57.7 | K24: =지점별소음도현황!T19 -> 58.8 | L24: 58 | M24: =지점별소음도현황!W19 -> 52.2 | N24: =지점별소음도현황!Y19 -> 51.5 | O24: 52
E25: 평균 | F25: - | G25: - | H25: =AVERAGE(H22:H24) -> 57 | I25: =AVERAGE(I22:I24) -> 57 | J25: 57 | K25: 53 | L25: 56 | M25: 51 | N25: 47 | O25: 49
D26: 도 로 | E26: 고려의원 앞 | F26: 163.74 | G26: 253.96 | H26: =지점별소음도현황!N20 -> 61.9 | I26: =지점별소음도현황!P20 -> 60.0 | J26: =지점별소음도현황!R20 -> 59.8 | K26: =지점별소음도현황!T20 -> 53.2 | L26: 59 | M26: =지점별소음도현황!W20 -> 52.9 | N26: =지점별소음도현황!Y20 -> 44.9 | O26: 49
E27: 제일교회앞 | F27: 164.41 | G27: 253.09 | H27: =지점별소음도현황!N21 -> 63.8 | I27: =지점별소음도현황!P21 -> 62.4 | J27: =지점별소음도현황!R21 -> 61.3 | K27: =지점별소음도현황!T21 -> 54.5 | L27: 61 | M27: =지점별소음도현황!W21 -> 54.2 | N27: =지점별소음도현황!Y21 -> 46.5 | O27: 50
E28: 평균 | F28: - | G28: - | H28: =AVERAGE(H26:H27) -> 63 | I28: =AVERAGE(I26:I27) -> 61 | J28: 61 | K28: 54 | L28: 60 | M28: 54 | N28: 46 | O28: 50
A29: 라 | B29: 공업지역 | C29: 태인동 | D29: 일 반 | E29: 태인폐수처리장 | F29: 159.78 | G29: 269.35 | H29: =지점별소음도현황!N23 -> 54.6 | I29: =지점별소음도현황!P23 -> 52.3 | J29: =지점별소음도현황!R23 -> 58.4 | K29: =지점별소음도현황!T23 -> 53.3 | L29: 55 | M29: =지점별소음도현황!W23 -> 53.0 | N29: =지점별소음도현황!Y23 -> 52.3 | O29: 53
E30: 조선내화㈜ | F30: 159.78 | G30: 268.72 | H30: =지점별소음도현황!N24 -> 63.6 | I30: =지점별소음도현황!P24 -> 62.7 | J30: =지점별소음도현황!R24 -> 65.5 | K30: =지점별소음도현황!T24 -> 63.5 | L30: 64 | M30: =지점별소음도현황!W24 -> 63.2 | N30: =지점별소음도현황!Y24 -> 61.1 | O30: 62
E31: ㈜남광포리머 | F31: 160.46 | G31: 269.75 | H31: =지점별소음도현황!N25 -> 62.6 | I31: =지점별소음도현황!P25 -> 61.4 | J31: =지점별소음도현황!R25 -> 62.5 | K31: =지점별소음도현황!T25 -> 59.1 | L31: 61 | M31: =지점별소음도현황!W25 -> 58.8 | N31: =지점별소음도현황!Y25 -> 56.5 | O31: 58
E32: 평균 | F32: - | G32: - | H32: =AVERAGE(H29:H31) -> 60 | I32: =AVERAGE(I29:I31) -> 59 | J32: 62 | K32: 59 | L32: 60 | M32: 58 | N32: 57 | O32: 57
D33: 도 로 | E33: 포스코컴텍 (구.포스렉) | F33: 160.07 | G33: 268.38 | H33: =지점별소음도현황!N26 -> 64.1 | I33: =지점별소음도현황!P26 -> 54.5 | J33: =지점별소음도현황!R26 -> 65.5 | K33: =지점별소음도현황!T26 -> 47.9 | L33: 58 | M33: =지점별소음도현황!W26 -> 47.5 | N33: =지점별소음도현황!Y26 -> 45.7 | O33: 47
E34: ㈜피엠에스(구.포스코엠텍) | F34: 160.55 | G34: 269.67 | H34: =지점별소음도현황!N27 -> 70.4 | I34: =지점별소음도현황!P27 -> 70.3 | J34: =지점별소음도현황!R27 -> 60.9 | K34: =지점별소음도현황!T27 -> 71.1 | L34: 68 | M34: =지점별소음도현황!W27 -> 61.1 | N34: =지점별소음도현황!Y27 -> 54.4 | O34: 58
E35: 평균 | F35: - | G35: - | H35: =AVERAGE(H33:H34) -> 67 | I35: =AVERAGE(I33:I34) -> 62 | J35: 63 | K35: 60 | L35: 63 | M35: 54 | N35: 50 | O35: 52
